bitfinex-derivatives/quotes_BTCF0:USTF0_20241231
["timestamp","ask_amount","ask_price","bid_price","bid_amount"]
[1735650860373,0.051,95109.0,95107.0,0.3608]
[1735650860584,0.051,95109.0,95107.0,0.052648]
[1735650861379,0.051,95109.0,95107.0,0.413448]
[1735650861786,0.051,95117.0,95116.0,0.052643]
[1735650861975,0.051,95117.0,95116.0,0.885043]
[1735650862179,0.0501,95121.0,95120.0,0.052641]
[1735650864873,0.0501,95121.0,95120.0,0.06505564]
[1735650866177,0.0501,95121.0,95116.0,0.83392]
[1735650866384,0.102741,95121.0,95116.0,0.8324]
[1735650866583,0.0501,95121.0,95116.0,0.8324]
[1735650866891,0.0501,95121.0,95117.0,0.052642]
[1735650867986,0.0501,95121.0,95116.0,0.84654968]
[1735650868190,0.0501,95121.0,95119.0,0.052641]
[1735650870585,0.0501,95121.0,95120.0,0.052641]
[1735650871387,0.0501,95121.0,95120.0,0.352641]
[1735650871591,0.0506,95135.0,95121.0,0.052641]
[1735650871792,0.0545,95134.0,95121.0,0.052641]
[1735650872797,0.0545,95134.0,95121.0,0.352641]
[1735650873496,0.0545,95134.0,95121.0,0.052641]
[1735650873996,0.052637,95128.0,95121.0,0.052641]
[1735650874696,0.052635,95131.0,95121.0,0.052641]
[1735650875682,0.3608,95133.0,95121.0,0.052641]
[1735650875881,0.052636,95130.0,95121.0,0.052641]
[1735650876293,0.052635,95132.0,95121.0,0.052641]
[1735650876497,0.052636,95130.0,95121.0,0.052641]
[1735650878693,0.052636,95129.0,95121.0,0.052641]
[1735650879000,0.052636,95129.0,95116.0,1.03324195]
[1735650879196,0.052636,95129.0,95116.0,1.03172195]
[1735650879395,0.0545,95134.0,95119.0,0.21449398]
[1735650879597,0.0545,95134.0,95120.0,0.3]
[1735650879895,0.0545,95134.0,95122.0,0.05264]
[1735650880099,0.0545,95134.0,95123.0,0.052639]
[1735650880289,0.0545,95134.0,95124.0,0.052639]
[1735650881603,0.4118,95136.0,95121.0,0.05264]
[1735650881604,0.3608,95136.0,95121.0,0.05264]
[1735650881905,0.3608,95136.0,95121.0,0.35264]
[1735650882298,0.1554,95151.0,95136.0,0.052632]
[1735650882299,0.3608,95144.0,95136.0,0.052632]
[1735650882500,0.3608,95144.0,95143.0,0.052629]
[1735650882501,0.35947527,95144.0,95143.0,0.052629]
[1735650883306,0.41210327,95144.0,95130.0,0.21449398]
[1735650883505,0.3608,95135.0,95134.0,0.052634]
[1735650883807,0.3608,95135.0,95134.0,0.352634]
[1735650884000,0.35947527,95144.0,95134.0,0.3]
[1735650884205,0.35947527,95144.0,95143.0,0.052629]
[1735650884905,0.35947527,95144.0,95130.0,0.1198197]
[1735650884906,0.052629,95143.0,95138.0,0.47136]
[1735650885209,0.052629,95143.0,95138.0,0.523991]
[1735650885505,0.052631,95139.0,95138.0,0.47136]
[1735650888004,0.32790008,95144.0,95138.0,0.86858631]
[1735650888207,0.05263,95141.0,95139.0,0.052631]
[1735650888708,0.05263,95141.0,95138.0,0.87010631]
[1735650888900,0.05263,95141.0,95140.0,0.05263]
[1735650889101,0.32790008,95144.0,95138.0,0.87010631]
[1735650889301,0.32790008,95144.0,95142.0,0.052629]
[1735650889500,0.32790008,95144.0,95143.0,0.052629]
[1735650891002,0.32790008,95144.0,95143.0,0.44997176]
[1735650892409,0.32790008,95144.0,95143.0,0.82527387]
[1735650892915,0.32790008,95144.0,95143.0,0.8378863]
[1735650893515,0.32790008,95144.0,95143.0,0.46258419]
[1735650896711,0.32790008,95144.0,95143.0,0.47526893]
[1735650898117,0.32790008,95144.0,95143.0,0.40995519]
[1735650898323,0.38052808,95144.0,95143.0,0.40995519]
[1735650898519,0.26991529,95144.0,95143.0,0.46258419]
[1735650898812,0.26991529,95144.0,95143.0,0.07792394]
[1735650899118,0.32254329,95144.0,95143.0,0.02529494]
[1735650899510,0.32254329,95144.0,95143.0,0.0252953]
[1735650899717,0.32254329,95144.0,95143.0,0.01261243]
[1735650899918,0.05263,95142.0,95140.0,0.31282939]
[1735650900116,0.05263,95141.0,95140.0,0.31282939]
[1735650900318,0.05263,95141.0,95140.0,0.32836906]
[1735650901313,0.05263,95141.0,95140.0,0.01553967]
[1735650901521,0.63071529,95144.0,95143.0,0.052629]
[1735650901522,0.68334329,95144.0,95143.0,0.052629]
[1735650902011,0.63071529,95144.0,95138.0,0.47136]
[1735650902218,0.052629,95143.0,95142.0,0.052629]
[1735650902926,0.05263,95140.0,95139.0,0.31282939]
[1735650903224,0.63071529,95144.0,95143.0,0.052629]
[1735650903409,0.59034729,95144.0,95143.0,0.052629]
[1735650903823,0.59034729,95144.0,95143.0,0.06531416]
[1735650904917,0.59034729,95144.0,95143.0,0.46315493]
[1735650905624,0.56044441,95144.0,95143.0,0.46315493]
[1735650905921,0.55474452,95144.0,95143.0,0.46315493]
[1735650906116,0.55474452,95144.0,95143.0,0.93447493]
[1735650906311,0.55474452,95144.0,95143.0,0.93447357]
[1735650907222,0.04489706,95144.0,95143.0,0.93447357]
[1735650908217,0.0037,95159.0,95143.0,1.59527357]
[1735650908414,0.3608,95154.0,95149.0,0.21449398]
[1735650908925,0.3608,95154.0,95150.0,0.23658431]
[1735650909225,0.3608,95186.0,95151.0,0.3608]
[1735650909522,0.07840513,95196.0,95195.0,0.0526]
[1735650909727,0.0564,95219.0,95195.0,0.0526]
[1735650909728,0.22059731,95206.0,95195.0,1.24548]
[1735650909919,0.22059731,95206.0,95196.0,0.10724699]
[1735650910427,0.26544708,95217.0,95206.0,0.052594]
[1735650910627,0.3608,95214.0,95208.0,0.052593]
[1735650910826,0.3098,95246.0,95212.0,0.3608]
[1735650911028,0.3608,95276.0,95245.0,0.3608]
[1735650911229,0.3608,95276.0,95262.0,0.3608]
[1735650911528,4.024e-05,95290.0,95262.0,0.3608]
[1735650911529,0.3608,95285.0,95263.0,0.17245112]
[1735650911824,0.3608,95285.0,95273.0,0.3608]
[1735650912024,4.024e-05,95290.0,95273.0,0.3608]
[1735650912226,0.3608,95280.0,95274.0,0.28442337]
[1735650912426,0.33417095,95292.0,95290.0,0.052547]
[1735650912627,0.3608,95303.0,95292.0,0.1054]
[1735650912628,0.02165,95300.0,95292.0,0.1054]
[1735650912838,0.02165,95300.0,95298.0,0.052543]
[1735650913218,0.02165,95300.0,95299.0,0.01810581]
[1735650913423,0.38245,95300.0,95299.0,0.60350671]
[1735650913620,0.02165,95300.0,95299.0,0.48926581]
[1735650913833,0.02165,95300.0,95299.0,2.24269676]
[1735650914032,0.02165,95300.0,95299.0,2.90349676]
[1735650914524,0.02165,95300.0,95299.0,3.66701623]
[1735650914832,0.02165,95300.0,95299.0,3.25490882]
[1735650915127,0.02165,95300.0,95299.0,2.42294882]
[1735650915329,0.02165,95300.0,95299.0,2.24914342]
[1735650915330,0.38245,95300.0,95299.0,2.24914342]
[1735650915530,1.380312,95300.0,95299.0,3.04214258]
[1735650915927,1.980312,95300.0,95299.0,3.04214258]
[1735650916231,1.980312,95300.0,95299.0,1.49611793]
[1735650916621,1.980312,95300.0,95299.0,1.36241293]
[1735650916936,0.052553,95280.0,95279.0,0.55523018]
[1735650917117,0.052558,95272.0,95270.0,0.01465958]
[1735650917319,0.052564,95261.0,95260.0,0.67861467]
[1735650917624,0.413364,95261.0,95260.0,0.67861467]
[1735650917932,0.10724699,95270.0,95260.0,0.67861467]
[1735650917933,0.46804699,95320.0,95265.0,0.052561]
[1735650918131,0.3658,95305.0,95288.0,0.3608]
[1735650918332,0.3658,95305.0,95290.0,0.10724699]
[1735650918635,0.3658,95305.0,95296.0,0.3608]
[1735650919324,0.005,95305.0,95296.0,0.3608]
[1735650920031,0.052546,95301.0,95296.0,0.3608]
[1735650920228,0.005,95305.0,95296.0,0.3608]
[1735650921734,0.052545,95304.0,95296.0,0.3608]
[1735650921922,0.052551,95293.0,95290.0,0.15876305]
[1735650922535,0.052551,95293.0,95288.0,0.3608]
[1735650922832,0.3608,95302.0,95288.0,0.3608]
[1735650923035,0.3608,95302.0,95290.0,0.15876305]
[1735650923220,0.005,95305.0,95296.0,0.3608]
[1735650923426,0.005,95305.0,95298.0,0.052547]
[1735650923936,0.005,95305.0,95298.0,0.352547]
[1735650924122,0.01993917,95300.0,95298.0,0.352547]
[1735650924325,1.7e-07,95305.0,95299.0,0.15762384]
[1735650924521,0.058,95346.0,95304.0,0.3608]
[1735650924734,0.058,95346.0,95299.0,0.27204786]
[1735650924735,0.3608,95333.0,95324.0,0.15876305]
[1735650926631,0.3608,95333.0,95324.0,0.45876305]
[1735650926836,0.3608,95333.0,95324.0,0.15876305]
[1735650927740,0.3608,95325.0,95310.0,0.15876305]
[1735650928332,0.3608,95325.0,95314.0,0.052538]
[1735650928527,0.3608,95315.0,95314.0,0.052538]
[1735650928927,0.3608,95315.0,95300.0,0.21131005]
[1735650929130,0.052542,95309.0,95290.0,0.15876305]
[1735650929330,0.052542,95309.0,95284.0,0.01915615]
[1735650929636,0.052542,95309.0,95287.0,0.052554]
[1735650929837,0.052542,95309.0,95280.0,0.15876305]
[1735650930038,0.052542,95309.0,95281.0,0.052557]
[1735650930238,0.052542,95309.0,95274.0,0.47048]
[1735650930438,0.052542,95309.0,95275.0,0.05256]
[1735650930636,0.352542,95309.0,95274.0,0.47048]
[1735650930833,0.3608,95275.0,95274.0,0.47048]
[1735650931227,0.3608,95293.0,95275.0,0.15692945]
[1735650931432,0.3608,95293.0,95288.0,0.052553]
[1735650931631,0.00011439,95292.0,95289.0,0.052552]
[1735650932029,0.00011439,95292.0,95291.0,0.052552]
[1735650932430,0.3608,95324.0,95320.0,0.052536]
[1735650932639,0.3608,95324.0,95314.0,0.15876305]
[1735650932845,0.3608,95324.0,95320.0,0.052535]
[1735650933046,0.3608,95324.0,95314.0,0.15876305]
[1735650933343,0.3608,95324.0,95320.0,0.052535]
[1735650933542,0.3608,95324.0,95321.0,0.052535]
[1735650933737,0.3608,95324.0,95323.0,0.052534]
[1735650934249,0.0566,95330.0,95318.0,0.3608]
[1735650934431,0.0566,95330.0,95314.0,0.15876305]
[1735650934432,0.3608,95329.0,95323.0,0.15654226]
[1735650934745,0.15355582,95329.0,95328.0,0.052531]
[1735650935845,0.10355582,95329.0,95328.0,0.052531]
[1735650936040,0.033,95334.0,95328.0,0.052531]
[1735650936240,0.033,95334.0,95321.0,0.3802994]
[1735650936446,0.3608,95327.0,95320.0,0.15876305]
[1735650936744,0.3608,95327.0,95310.0,0.15876305]
[1735650936745,0.052535,95322.0,95310.0,0.15876305]
[1735650936946,0.3608,95313.0,95311.0,0.05254]
[1735650937333,0.3608,95313.0,95310.0,0.15876305]
[1735650937529,0.41334,95313.0,95311.0,0.01596174]
[1735650937734,0.052543,95308.0,95300.0,0.47044]
[1735650937929,0.3608,95301.0,95300.0,0.47044]
[1735650938435,0.3608,95301.0,95300.0,0.48326289]
[1735650938837,0.3608,95301.0,95289.0,0.01960133]
[1735650939040,0.3608,95301.0,95277.0,0.052559]
[1735650939041,0.052553,95288.0,95277.0,0.052559]
[1735650939243,0.3608,95281.0,95278.0,0.0128259]
[1735650939549,0.3608,95281.0,95261.0,0.01576]
[1735650939550,0.052559,95278.0,95271.0,0.15699225]
[1735650939840,0.3608,95272.0,95263.0,0.052567]
[1735650940045,0.3608,95264.0,95263.0,0.052567]
[1735650940443,0.3608,95264.0,95263.0,0.20955925]
[1735650940643,0.3608,95264.0,95263.0,0.052567]
[1735650940845,0.3608,95264.0,95260.0,0.47234]
[1735650941048,0.3608,95264.0,95260.0,0.47082]
[1735650941239,0.3608,95264.0,95261.0,0.02044134]
[1735650941434,0.3608,95264.0,95262.0,0.07300834]
[1735650941645,0.3608,95264.0,95263.0,0.02044134]
[1735650942044,0.3608,95264.0,95263.0,0.02044065]
[1735650942443,0.3608,95264.0,95263.0,0.02043719]
[1735650943343,0.3608,95264.0,95263.0,0.47817904]
[1735650943545,0.35456583,95264.0,95263.0,0.47817904]
[1735650943849,0.35456583,95264.0,95263.0,0.17817904]
[1735650944239,0.35456583,95264.0,95263.0,0.02043719]
[1735650944542,0.35456583,95264.0,95263.0,0.26876494]
[1735650944939,0.35456583,95264.0,95263.0,0.24832775]
[1735650945156,0.71536583,95264.0,95263.0,0.06382775]
[1735650945339,0.052571,95255.0,95254.0,0.30640643]
[1735650945651,0.413371,95255.0,95254.0,0.21420643]
[1735650946038,0.413371,95255.0,95245.0,0.1861954]
[1735650946039,0.052574,95251.0,95245.0,0.1861954]
[1735650946246,0.3608,95246.0,95245.0,0.1861954]
[1735650946447,0.36090788,95246.0,95245.0,0.1861954]
[1735650947445,0.36090788,95246.0,95235.0,0.052583]
[1735650947652,0.3608,95236.0,95235.0,0.052583]
[1735650948651,0.3608,95236.0,95230.0,0.01987461]
[1735650948835,0.3608,95236.0,95234.0,0.052583]
[1735650949754,0.3608,95236.0,95227.0,0.052587]
[1735650950646,0.3608,95228.0,95221.0,0.49175652]
[1735650950951,0.3608,95228.0,95225.0,0.052588]
[1735650951448,0.3608,95228.0,95221.0,0.49167652]
[1735650951747,0.3608,95228.0,95226.0,0.052587]
[1735650952946,0.3608,95228.0,95227.0,0.052587]
[1735650955150,0.3608,95228.0,95227.0,0.21054933]
[1735650956047,0.3608,95228.0,95227.0,0.15796233]
[1735650956246,0.3608,95228.0,95221.0,0.49175652]
[1735650956452,0.05259,95222.0,95221.0,0.49015652]
[1735650957155,0.05259,95222.0,95200.0,0.1]
[1735650957156,0.052599,95206.0,95200.0,0.1]
[1735650957451,0.413399,95206.0,95200.0,0.1]
[1735650957654,0.3608,95206.0,95201.0,0.01973907]
[1735650957864,0.052601,95202.0,95185.0,0.2388054]
[1735650958055,0.3608,95188.0,95186.0,0.16964896]
[1735650958256,0.3608,95188.0,95187.0,0.01273955]
[1735650958648,0.3608,95188.0,95187.0,0.16973041]
[1735650959363,0.31877769,95188.0,95187.0,0.16973041]
[1735650959563,0.3608,95215.0,95187.0,0.93593041]
[1735650959854,0.3608,95215.0,95205.0,0.15876305]
[1735650960051,0.052595,95213.0,95196.0,0.3608]
[1735650960249,0.3608,95207.0,95206.0,0.15777992]
[1735650960450,0.3608,95207.0,95205.0,0.15777992]
[1735650960958,0.413398,95207.0,95206.0,0.15714696]
[1735650961155,0.3608,95207.0,95190.0,0.15876305]
[1735650961351,0.3608,95196.0,95195.0,0.052605]
[1735650961551,0.3608,95196.0,95193.0,0.052606]
[1735650961863,0.3608,95196.0,95195.0,0.15796244]
[1735650962057,0.413404,95196.0,95194.0,0.15796244]
[1735650962258,0.413404,95196.0,95195.0,0.15796244]
[1735650962558,0.3608,95196.0,95195.0,0.052605]
[1735650962757,0.3608,95223.0,95195.0,0.54973341]
[1735650962961,0.3608,95223.0,95220.0,0.052591]
[1735650963654,0.3608,95223.0,95210.0,0.15876305]
[1735650963954,0.3608,95223.0,95211.0,0.15679799]
[1735650964153,0.3608,95223.0,95213.0,0.052594]
[1735650964558,0.05269788,95222.0,95214.0,0.15679799]
[1735650964865,0.00010788,95222.0,95214.0,0.15679799]
[1735650965059,0.00010788,95222.0,95221.0,0.05259]
[1735650965370,0.00010788,95222.0,95221.0,0.22321692]
[1735650965765,0.00010788,95222.0,95221.0,0.17062692]
[1735650965951,0.00010788,95222.0,95221.0,0.15788606]
[1735650966149,0.00010788,95222.0,95213.0,0.47084]
[1735650966356,0.00010788,95222.0,95214.0,0.06535644]
[1735650966558,0.00010788,95222.0,95217.0,0.15742704]
[1735650966861,0.00010788,95222.0,95221.0,0.05259]
[1735650967758,0.00010788,95222.0,95221.0,0.01277589]
[1735650968057,0.00010788,95222.0,95220.0,0.05259]
[1735650968563,0.00010788,95222.0,95221.0,0.01278737]
[1735650968765,0.00010788,95222.0,95221.0,0.06537737]
[1735650969951,0.00010788,95222.0,95221.0,0.22353872]
[1735650970366,0.052581,95238.0,95225.0,0.052588]
[1735650970553,0.052582,95237.0,95226.0,0.06537437]
[1735650970755,0.052582,95237.0,95227.0,0.01278737]
[1735650970956,0.3608,95229.0,95228.0,0.01278737]
[1735650971159,0.3608,95229.0,95228.0,0.15747132]
[1735650971365,0.36089982,95229.0,95228.0,0.17026991]
[1735650971671,0.36089982,95229.0,95228.0,0.01279859]
[1735650971961,9.982e-05,95229.0,95228.0,0.22200321]
[1735650972655,9.982e-05,95229.0,95228.0,0.16941721]
[1735650973464,0.3608,95239.0,95231.0,0.052585]
[1735650973659,0.3608,95239.0,95232.0,0.01279859]
[1735650973857,0.3608,95239.0,95233.0,0.01279859]
[1735650974062,0.3608,95239.0,95234.0,0.01279859]
[1735650974264,0.3608,95239.0,95235.0,0.01279859]
[1735650974566,0.3608,95239.0,95236.0,0.01279859]
[1735650974761,0.3608,95239.0,95237.0,0.01279859]
[1735650974969,0.3608,95239.0,95238.0,0.01279859]
[1735650976768,0.0333,95242.0,95238.0,0.01279859]
[1735650976969,0.0333,95242.0,95229.0,0.53711673]
[1735650976970,0.12608172,95247.0,95239.0,0.01279859]
[1735650977165,0.12608172,95247.0,95244.0,0.052577]
[1735650977360,0.12608172,95247.0,95245.0,0.01279859]
[1735650977561,0.12608172,95247.0,95246.0,0.06537459]
[1735650978056,0.12608172,95247.0,95246.0,0.58452665]
[1735650978255,0.0333,95247.0,95246.0,0.58452665]
[1735650978871,0.0333,95247.0,95246.0,0.60191658]
[1735650979655,0.12370896,95257.0,95246.0,0.60191658]
[1735650979656,0.0333,95257.0,95246.0,0.73553598]
[1735650979872,0.0333,95257.0,95248.0,0.052575]
[1735650980164,0.0333,95257.0,95255.0,0.052571]
[1735650980361,0.0333,95257.0,95256.0,0.01281081]
[1735650980565,0.0333,95257.0,95248.0,0.15774205]
[1735650980766,0.0333,95257.0,95249.0,0.01280885]
[1735650980966,0.0333,95257.0,95250.0,0.1704977]
[1735650981167,0.0333,95257.0,95251.0,0.01280885]
[1735650981369,0.0333,95257.0,95252.0,0.01280885]
[1735650981564,0.0333,95257.0,95247.0,0.15876305]
[1735650981565,0.052576,95247.0,95246.0,0.01738993]
[1735650981767,0.052574,95250.0,95246.0,0.01281014]
[1735650981969,0.052574,95250.0,95247.0,0.01281197]
[1735650982164,0.052574,95250.0,95248.0,0.01281197]
[1735650982363,0.052574,95250.0,95240.0,0.34495845]
[1735650982577,0.3608,95242.0,95241.0,0.0128115]
[1735650983071,0.052574,95251.0,95241.0,0.22336311]
[1735650983269,0.3608,95243.0,95242.0,0.01280972]
[1735650983670,0.3608,95243.0,95242.0,0.17078411]
[1735650985474,0.052574,95251.0,95242.0,0.17078411]
[1735650985671,0.052574,95251.0,95243.0,0.01280972]
[1735650985864,0.052574,95251.0,95244.0,0.01280972]
[1735650986068,0.3608,95245.0,95242.0,0.052578]
[1735650986268,0.3608,95245.0,95243.0,0.01281118]
[1735650986476,0.3608,95245.0,95244.0,0.01281118]
[1735650988660,0.3608,95245.0,95244.0,0.19900658]
[1735650990367,0.3608,95245.0,95244.0,0.01281118]
[1735650990668,0.052578,95244.0,95243.0,0.1861954]
[1735650991580,0.052578,95244.0,95243.0,0.19902649]
[1735650991876,0.052579,95241.0,95240.0,0.1861954]
[1735650992064,0.052579,95241.0,95240.0,0.19902516]
[1735650992270,0.052579,95241.0,95240.0,0.35611411]
[1735650992470,0.413377,95245.0,95240.0,0.35611411]
[1735650992676,0.052578,95244.0,95241.0,0.01282976]
[1735650992978,0.3608,95245.0,95242.0,0.01282976]
[1735650993275,0.3608,95245.0,95244.0,0.052578]
[1735650993579,0.3608,95245.0,95244.0,0.06540776]
[1735650993782,0.14535672,95250.0,95244.0,0.06540776]
[1735650994081,0.09278172,95250.0,95249.0,0.052575]
[1735650994282,0.09278172,95250.0,95249.0,0.06540476]
[1735650994482,0.09278172,95250.0,95249.0,0.22234026]
[1735650994681,0.12608172,95257.0,95256.0,0.052571]
[1735650994869,0.12608172,95257.0,95256.0,0.06540076]
[1735650995877,0.0333,95257.0,95256.0,0.06540076]
[1735650997575,0.0333,95257.0,95256.0,0.08340364]
[1735650998075,0.0333,95257.0,95256.0,0.0833995]
[1735650998679,0.3941,95263.0,95256.0,0.0833995]
[1735650998877,0.3941,95263.0,95257.0,0.01282562]
[1735650999079,0.3941,95263.0,95258.0,0.06539562]
[1735650999277,0.3941,95263.0,95259.0,0.01282562]
[1735650999589,0.3941,95263.0,95260.0,0.01282562]
[1735650999770,0.3941,95263.0,95261.0,0.01282562]
[1735650999971,0.0333,95263.0,95258.0,0.05257]
[1735651000175,0.0333,95263.0,95256.0,0.01800288]
[1735651000176,0.3941,95263.0,95259.0,0.01283416]
[1735651000392,0.3941,95263.0,95260.0,0.01283416]
[1735651000686,0.3941,95263.0,95261.0,0.01283416]
[1735651000884,0.3941,95263.0,95254.0,0.15676761]
[1735651001084,0.3941,95263.0,95253.0,0.01791923]
[1735651001085,0.3608,95255.0,95253.0,0.01791923]
[1735651001288,0.3608,95255.0,95254.0,0.01283752]
[1735651001478,0.052573,95253.0,95252.0,0.31204984]
[1735651001679,0.052573,95253.0,95252.0,0.33004675]
[1735651001875,0.3608,95255.0,95252.0,0.33004675]
[1735651002487,0.3608,95255.0,95252.0,0.01799691]
[1735651002684,0.3608,95255.0,95250.0,0.18745708]
[1735651002883,0.052572,95254.0,95251.0,0.01284561]
[1735651003078,0.052572,95254.0,95252.0,0.01284561]
[1735651003280,0.052572,95254.0,95250.0,0.18745708]
[1735651003578,0.51780896,95263.0,95254.0,0.052572]
[1735651003778,0.052568,95262.0,95254.0,0.052572]
[1735651003994,0.12370896,95261.0,95250.0,0.10602171]
[1735651004288,0.12370896,95261.0,95256.0,0.052571]
[1735651004491,0.12370896,95261.0,95257.0,0.01284141]
[1735651004796,0.12370896,95261.0,95258.0,0.01284141]
[1735651004981,0.052569,95260.0,95259.0,0.01284639]
[1735651005494,0.3941,95263.0,95249.0,0.31204984]
[1735651005495,0.052574,95250.0,95249.0,0.31204984]
[1735651005797,0.413374,95250.0,95249.0,0.31204984]
[1735651006087,0.3608,95250.0,95249.0,0.31204984]
[1735651006488,0.3608,95250.0,95247.0,0.18747405]
[1735651007281,0.3608,95250.0,95247.0,0.24005005]
[1735651007481,0.3608,95250.0,95248.0,0.01284509]
[1735651007687,0.3608,95250.0,95249.0,0.01284509]
[1735651007987,0.3608,95250.0,95247.0,0.24005005]
[1735651007988,0.3608,95250.0,95247.0,0.052576]
[1735651008183,0.3608,95250.0,95248.0,0.01284115]
[1735651008381,0.3608,95250.0,95246.0,0.24996541]
[1735651008584,0.3608,95250.0,95247.0,0.01284119]
[1735651008777,0.3608,95250.0,95248.0,0.01284119]
[1735651008982,0.3608,95250.0,95249.0,0.01284164]
[1735651009789,0.3608,95250.0,95248.0,0.24996541]
[1735651010098,0.3608,95250.0,95249.0,0.01284113]
[1735651010590,0.413374,95250.0,95249.0,0.01284113]
[1735651011590,0.3608,95250.0,95249.0,0.01284113]
[1735651011991,0.413374,95250.0,95249.0,0.01284113]
[1735651012697,0.413374,95250.0,95249.0,0.26280654]
[1735651013090,0.413374,95250.0,95249.0,0.26280541]
[1735651014791,0.0333,95260.0,95249.0,0.26280541]
[1735651015093,0.0333,95260.0,95250.0,0.11886171]
[1735651015289,0.0333,95260.0,95251.0,0.01284]
[1735651015487,0.0333,95260.0,95252.0,0.01284]
[1735651015693,0.0333,95260.0,95253.0,0.01284]
[1735651015998,0.0333,95260.0,95254.0,0.01274618]
[1735651016197,0.0333,95260.0,95250.0,0.052574]
[1735651016694,0.052568,95261.0,95257.0,0.24996541]
[1735651017084,0.3941,95262.0,95257.0,0.24996541]
[1735651017802,0.3941,95262.0,95258.0,0.24996541]
[1735651018388,0.052569,95259.0,95258.0,0.24996541]
[1735651018705,0.3941,95262.0,95258.0,0.24996541]
[1735651018899,0.052569,95259.0,95258.0,0.24996541]
[1735651019091,0.052569,95259.0,95243.0,0.36768772]
[1735651019092,0.052572,95255.0,95244.0,0.052578]
[1735651019396,0.3608,95253.0,95245.0,0.052577]
[1735651019598,0.3608,95253.0,95244.0,0.15700841]
[1735651019796,0.3608,95253.0,95242.0,0.01749156]
[1735651019797,0.3608,95245.0,95242.0,0.01749156]
[1735651020101,0.052578,95243.0,95242.0,0.37514328]
[1735651020902,0.3608,95245.0,95242.0,0.37514328]
[1735651021294,0.3608,95245.0,95242.0,0.18769236]
[1735651021598,0.052575,95250.0,95242.0,0.18769236]
[1735651021599,0.3608,95247.0,95242.0,0.18769236]
[1735651021987,0.3608,95247.0,95246.0,0.052577]
[1735651022189,0.12591271,95251.0,95246.0,0.052577]
[1735651022400,0.12591271,95251.0,95242.0,0.18769236]
[1735651022701,0.12591271,95263.0,95258.0,0.05257]
[1735651022896,0.12591271,95263.0,95259.0,0.052569]
[1735651023392,0.12591271,95263.0,95255.0,0.3608]
[1735651023592,0.12591271,95263.0,95259.0,0.052569]
[1735651023798,0.36237522,95267.0,95259.0,0.052569]
[1735651024301,0.36237522,95267.0,95258.0,0.31282061]
[1735651024495,0.36237522,95267.0,95260.0,0.052569]
[1735651025501,0.3608,95267.0,95260.0,0.052569]
[1735651027497,0.3608,95267.0,95259.0,0.31282061]
[1735651027498,0.413365,95267.0,95259.0,0.31282061]
[1735651027697,0.413365,95267.0,95265.0,0.25008119]
[1735651027899,0.413365,95267.0,95266.0,0.01284284]
[1735651031304,0.12591271,95279.0,95266.0,0.06540784]
[1735651031491,0.12591271,95279.0,95278.0,0.052559]
[1735651031696,0.3608,95282.0,95278.0,0.01284284]
[1735651031896,0.052558,95281.0,95279.0,0.01284284]
[1735651032199,0.052558,95281.0,95280.0,0.01284284]
[1735651032798,0.052558,95281.0,95276.0,0.25008119]
[1735651032999,0.052558,95281.0,95277.0,0.01283151]
[1735651033204,0.052558,95281.0,95278.0,0.01283151]
[1735651033404,0.052558,95281.0,95279.0,0.01283151]
[1735651033608,0.052558,95281.0,95276.0,0.25008119]
[1735651033609,0.052558,95281.0,95280.0,0.01282832]
[1735651033804,0.052558,95281.0,95280.0,0.20019273]
[1735651034104,0.052558,95281.0,95280.0,0.18736441]
[1735651034307,0.3608,95282.0,95280.0,0.18736441]
[1735651035102,0.3608,95282.0,95279.0,0.18736441]
[1735651035503,0.3608,95282.0,95281.0,0.052557]
[1735651035710,0.3608,95282.0,95281.0,0.06537481]
[1735651036506,0.3608,95282.0,95281.0,0.06537697]
[1735651038007,0.3608,95282.0,95281.0,0.01281997]
[1735651039210,0.3608,95282.0,95281.0,0.01281714]
[1735651039515,0.3608,95282.0,95280.0,0.18713075]
[1735651039715,0.052557,95281.0,95280.0,0.18713075]
[1735651040306,0.05256,95276.0,95275.0,0.26779649]
[1735651040508,0.05256,95276.0,95275.0,0.25008119]
[1735651041209,0.05256,95276.0,95274.0,0.01799584]
[1735651041210,0.3608,95282.0,95266.0,0.25008119]
[1735651041409,0.413365,95267.0,95266.0,0.25008119]
[1735651041912,0.3608,95282.0,95273.0,0.052562]
[1735651042118,0.3608,95274.0,95270.0,0.15858471]
[1735651042317,0.3608,95274.0,95271.0,0.06538052]
[1735651042517,0.052562,95273.0,95272.0,0.01281852]
[1735651042904,0.052562,95273.0,95272.0,0.0128201]
[1735651044014,0.3608,95274.0,95264.0,0.10602171]
[1735651044226,0.413361,95274.0,95267.0,0.052565]
[1735651044419,0.413361,95274.0,95268.0,0.01282821]
[1735651044612,0.052563,95272.0,95269.0,0.01282821]
[1735651044815,0.052563,95272.0,95270.0,0.01282821]
[1735651045015,0.052563,95272.0,95271.0,0.01282821]
[1735651045514,0.052563,95272.0,95271.0,0.01282751]
[1735651045711,0.3608,95274.0,95271.0,0.01282751]
[1735651045916,0.3608,95274.0,95272.0,0.01282651]
[1735651046118,0.3608,95274.0,95273.0,0.01282651]
[1735651046919,0.052558,95279.0,95273.0,0.01282651]
[1735651047124,0.052559,95278.0,95274.0,0.01282651]
[1735651047418,0.052559,95278.0,95275.0,0.01282651]
[1735651047625,0.052559,95278.0,95276.0,0.01282651]
[1735651047820,0.052559,95278.0,95277.0,0.01282651]
[1735651049819,0.3608,95284.0,95277.0,0.01282651]
[1735651050019,0.3608,95284.0,95278.0,0.01282651]
[1735651050220,0.3608,95284.0,95279.0,0.01282651]
[1735651050522,0.3608,95284.0,95280.0,0.01282651]
[1735651050720,0.3608,95284.0,95275.0,0.61211691]
[1735651050721,0.052557,95282.0,95281.0,0.01282651]
[1735651051122,0.3608,95284.0,95275.0,0.25135691]
[1735651051333,0.052559,95277.0,95276.0,0.01283173]
[1735651051530,0.052559,95277.0,95276.0,0.01283211]
[1735651053435,0.052559,95277.0,95276.0,0.26262902]
[1735651054529,0.052559,95277.0,95276.0,0.26263817]
[1735651054725,0.052559,95277.0,95276.0,0.01284126]
[1735651056425,0.05256,95276.0,95275.0,0.24979691]
[1735651057532,0.052565,95266.0,95255.0,0.37514328]